[Event "V. Korchnoy Memorial 2018"]
[Site "St. Petersburg"]
[Date "2018.08.15"]
[Round "1"]
[White "Zemnitskiy, Alexander"]
[Black "Vavulin, Maksim"]
[Result "0-1"]
[ECO "A40"]
[WhiteElo "2069"]
[BlackElo "2545"]
[Annotator "ChessBase"]
[PlyCount "58"]
[EventDate "2018.08.15"]
[EventType "swiss"]
[EventCountry "RUS"]
[SourceTitle "playchess.com"]
[Source "ChessBase"]
[SourceQuality "1"]
[TimeControl "5400+30"]

1. d4 {[%emt 0:00:00]} e6 {[%emt 0:00:18]} 2. c4 {[%emt 0:00:10]} c5 {[%emt 0:00:05]} 3. d5 {[%emt 0:01:58]} exd5 {[%emt 0:00:07]} 4. cxd5 {[%emt 0:00:06]} d6 {[%emt 0:00:07]} 5. e4 {[%emt 0:02:36]} g6 {[%emt 0:00:13]} 6. h3 {[%emt 0:00:56]} Bg7 {[%emt 0:00:18]} 7. Nf3 {[%emt 0:00:23]} Ne7 {[%emt 0:00:34]} 8. Nc3 {[%emt 0:00:38]} h6 {[%emt 0:02:13]} 9. Bd3 {[%emt 0:01:36]} O-O {[%emt 0:00:18]} 10. O-O {[%emt 0:00:06]} f5 {[%emt 0:04:52]} 11. Re1 {[%emt 0:03:26]} fxe4 {[%emt 0:00:54]} 12. Bxe4 {[%emt 0:01:02]} Nd7 {[%emt 0:01:02]} 13. Qc2 {[%emt 0:12:15]} Nf5 {[%emt 0:02:14]} 14. Bf4 {[%emt 0:16:07]} Nf6 {[%emt 0:09:55]} 15. Bd3 {[%emt 0:01:38]} a6 {[%emt 0:03:04]} 16. Ne4 {[%emt 0:04:25]} b5 {[%emt 0:02:16]} 17. Nxf6+ {[%emt 0:02:38]} Qxf6 {[%emt 0:00:07]} 18. Re2 {[%emt 0:02:23]} g5 {[%emt 0:04:40]} 19. Bh2 {[%emt 0:01:05]} h5 {[%emt 0:00:11]} 20. g4 {[%emt 0:24:24]} hxg4 {[%emt 0:02:05]} 21. hxg4 {[%emt 0:00:14]} Nh6 {[%emt 0:04:23]} 22. Bh7+ {[%emt 0:02:50]} Kh8 {[%emt 0:00:15]} 23. Be5 {[%emt 0:00:24]} dxe5 {[%emt 0:02:58]} 24. Nxe5 {[%emt 0:00:05]} Bxg4 {[%emt 0:01:26]} 25. Ng6+ {[%emt 0:11:13]} Kxh7 {[%emt 0:00:08]} 26. Nxf8+ {[%emt 0:00:13]} Kg8 {[%emt 0:00:05]} 27. Nh7 {[%emt 0:01:04]} Qf5 {[%emt 0:00:37]} 28. Qxf5 {[%emt 0:00:26]} Nxf5 {[%emt 0:00:06]} 29. Nxg5 {[%emt 0:00:07]} Bxe2 {[%emt 0:00:06]} 0-1

[Event "V. Korchnoy Memorial 2018"]
[Site "St. Petersburg"]
[Date "2018.08.17"]
[Round "3"]
[White "Tsydypov, Zhamsaran"]
[Black "Tran, Minh Thang"]
[Result "1-0"]
[ECO "B43"]
[WhiteElo "2520"]
[BlackElo "2335"]
[Annotator "ChessBase"]
[PlyCount "71"]
[EventDate "2018.08.15"]
[EventType "swiss"]
[EventCountry "RUS"]
[SourceTitle "playchess.com"]
[Source "ChessBase"]
[SourceQuality "1"]
[TimeControl "5400+30"]

1. e4 {[%emt 0:00:01]} c5 {[%emt 0:00:00]} 2. Nf3 {[%emt 0:00:16]} e6 {[%emt 0:00:00]} 3. d4 {[%emt 0:00:18]} cxd4 {[%emt 0:00:01]} 4. Nxd4 {[%emt 0:00:04]} a6 {[%emt 0:00:08]} 5. Nc3 {[%emt 0:00:13]} d6 {[%emt 0:00:19]} 6. Bd3 {[%emt 0:02:24]} Nf6 {[%emt 0:00:56]} 7. O-O {[%emt 0:01:21]} Be7 {[%emt 0:00:33]} 8. a4 {[%emt 0:01:01]} O-O {[%emt 0:07:59]} 9. a5 {[%emt 0:05:43]} e5 {[%emt 0:05:27]} 10. Nb3 {[%emt 0:01:01]} Be6 {[%emt 0:01:43]} 11. Nd5 {[%emt 0:04:35]} Nxd5 {[%emt 0:18:20]} 12. exd5 {[%emt 0:00:02]} Bc8 {[%emt 0:00:11]} 13. Be3 {[%emt 0:04:38]} Nd7 {[%emt 0:06:42]} 14. c4 {[%emt 0:01:47]} g6 {[%emt 0:09:16]} 15. Qd2 {[%emt 0:03:16]} f5 {[%emt 0:01:17]} 16. f3 {[%emt 0:00:30]} Nf6 {[%emt 0:10:29]} 17. Bb6 {[%emt 0:02:39]} Qe8 {[%emt 0:00:29]} 18. c5 {[%emt 0:04:45]} Kg7 {[%emt 0:02:47]} 19. Bc4 {[%emt 0:01:27]} Bd7 {[%emt 0:00:36]} 20. Qb4 {[%emt 0:05:59]} Rc8 {[%emt 0:09:31]} 21. Rac1 {[%emt 0:13:40]} Rf7 {[%emt 0:09:58]} 22. cxd6 {[%emt 0:00:59]} Bf8 {[%emt 0:01:35]} 23. Rfe1 {[%emt 0:03:20]} Bb5 {[%emt 0:03:27]} 24. Bxb5 {[%emt 0:03:02]} axb5 {[%emt 0:00:26]} 25. Rxc8 {[%emt 0:02:15]} Qxc8 {[%emt 0:00:13]} 26. Rxe5 {[%emt 0:01:18]} Qc4 {[%emt 0:02:56]} 27. Qxc4 {[%emt 0:00:54]} bxc4 {[%emt 0:00:28]} 28. Re6 {[%emt 0:05:07]} cxb3 {[%emt 0:01:05]} 29. Bd4 {[%emt 0:00:08]} g5 {[%emt 0:00:09]} 30. Kf1 {[%emt 0:01:26]} f4 {[%emt 0:01:03]} 31. Bxf6+ {[%emt 0:00:28]} Rxf6 {[%emt 0:00:20]} 32. d7 {[%emt 0:00:05]} Rxe6 {[%emt 0:00:41]} 33. d8=Q {[%emt 0:00:08]} Rf6 {[%emt 0:00:26]} 34. Qc7+ {[%emt 0:00:37]} Rf7 {[%emt 0:00:14]} 35. Qe5+ {[%emt 0:00:11]} Kg6 {[%emt 0:00:07]} 36. d6 {[%emt 0:00:08]} 1-0

[Event "V. Korchnoy Memorial 2018"]
[Site "St. Petersburg"]
[Date "2018.08.17"]
[Round "3"]
[White "Bajarani, Ulvi"]
[Black "Ponkratov, Pavel"]
[Result "0-1"]
[ECO "C07"]
[WhiteElo "2425"]
[BlackElo "2605"]
[Annotator "RC"]
[PlyCount "100"]
[EventDate "2018.08.15"]
[EventType "swiss"]
[EventCountry "RUS"]
[SourceTitle "playchess.com"]
[Source "ChessBase"]
[SourceQuality "1"]
[TimeControl "5400+30"]

1. e4 {[%emt 0:00:00]} e6 {[%emt 0:00:17]} 2. d4 {[%emt 0:00:00]} d5 {[%emt 0:00:03]} 3. Nd2 {[%emt 0:00:00]} c5 {[%emt 0:00:05]} 4. exd5 {[%emt 0:00:00]} Qxd5 {[%emt 0:00:04]} 5. Ngf3 {[%emt 0:00:09]} Nf6 {[%emt 0:01:57]} 6. Bc4 {[%emt 0:02:24]} Qd8 {[%emt 0:00:06]} 7. O-O {[%emt 0:01:08]} a6 {[%emt 0:00:46]} 8. dxc5 {[%emt 0:00:55]} Bxc5 {[%emt 0:00:07]} 9. Qe2 {[%emt 0:00:35]} Qc7 {[%emt 0:07:12]} 10. Ne4 {[%emt 0:02:35]} Be7 {[%emt 0:00:04]} 11. Bd3 {[%emt 0:08:37]} Nbd7 {[%emt 0:00:33]} 12. Bg5 {[%emt 0:01:53]} h6 {[%emt 0:02:01]} 13. Nxf6+ {[%emt 0:01:04]} Bxf6 {[%emt 0:00:56]} 14. Bxf6 {[%emt 0:00:11]} Nxf6 {[%emt 0:00:04]} 15. Ne5 {[%emt 0:01:44]} b6 {[%emt 0:01:45]} 16. Rfe1 {[%emt 0:03:58]} Bb7 {[%emt 0:06:32]} 17. Rad1 {[%emt 0:00:58]} O-O {[%emt 0:00:24]} 18. c3 {[%emt 0:03:21]} Rfd8 {[%emt 0:00:17]} 19. Bc2 {[%emt 0:01:40]} Rxd1 {[%emt 0:01:52]} 20. Rxd1 {[%emt 0:00:09]} Rd8 {[%emt 0:00:28]} 21. Rxd8+ {[%emt 0:02:09]} Qxd8 {[%emt 0:00:06]} 22. Qd3 {[%emt 0:00:17]} Qc7 {[%emt 0:02:59]} 23. Qd4 {[%emt 0:00:16]} Nd5 {[%emt 0:01:22]} 24. h3 {[%emt 0:09:41]} f6 {[%emt 0:04:41]} 25. Ng6 {[%emt 0:00:44]} Kf7 {[%emt 0:11:10]} 26. Nh8+ {[%emt 0:00:42]} Kf8 {[%emt 0:00:15]} 27. Ng6+ {[%emt 0:00:06]} Ke8 {[%emt 0:05:22]} 28. c4 {[%emt 0:08:17]} Ne7 {[%emt 0:06:13]} 29. Nxe7 {[%emt 0:00:58]} Kxe7 {[%emt 0:00:06]} 30. Qg4 {[%emt 0:00:09]} g5 {[%emt 0:00:37]} 31. Qd4 {[%emt 0:09:41]} Qc6 {[%emt 0:00:38]} 32. f3 {[%emt 0:00:08]} Qc5 {[%emt 0:00:04]} 33. Qxc5+ {[%emt 0:00:08]} bxc5 {[%emt 0:00:04]} 34. Kf2 {[%emt 0:00:15]} f5 {[%emt 0:00:23]} 35. Ke3 {[%emt 0:08:00]} h5 {[%emt 0:02:20]} 36. g4 {[%emt 0:04:00]} hxg4 {[%emt 0:08:27]} 37. hxg4 {[%emt 0:00:05]} f4+ {[%emt 0:00:03]} 38. Ke2 {[%emt 0:00:10]} Kd6 {[%emt 0:00:39]} 39. Bd1 {[%emt 0:00:29]} Bc6 {[%emt 0:00:35]} 40. Kd3 {[%emt 0:01:21]} a5 {[%emt 0:00:05]} 41. b3 {[%emt 0:01:47]} e5 {[%emt 0:08:46]} 42. a3 {[%emt 0:08:56]} Ke6 {[%emt 0:03:20]} 43. Be2 {[%emt 0:01:21]} a4 {[%emt 0:02:15]} 44. b4 {[%emt 0:00:23]} e4+ {[%emt 0:04:44]} 45. fxe4 {[%emt 0:00:06]} Ke5 {[%emt 0:00:03]} 46. b5 {[%emt 0:03:18]} Bxe4+ {[%emt 0:01:03]} 47. Kd2 {[%emt 0:00:17]} Kd4 {[%emt 0:01:31]} 48. b6 {[%emt 0:01:21]} Bb7 {[%emt 0:00:32]} 49. Bd3 {[%emt 0:02:36]} f3 {[%emt 0:00:49]} 50. Bf1 {[%emt 0:02:33]} Ke4 {[%emt 0:00:08]} 0-1

[Event "V. Korchnoy Memorial 2018"]
[Site "St. Petersburg"]
[Date "2018.08.17"]
[Round "3"]
[White "Bachin, Vitaly"]
[Black "Chigaev, Maksim"]
[Result "0-1"]
[ECO "B23"]
[WhiteElo "2406"]
[BlackElo "2577"]
[Annotator "RC"]
[PlyCount "88"]
[EventDate "2018.08.15"]
[EventType "swiss"]
[EventCountry "RUS"]
[SourceTitle "playchess.com"]
[Source "ChessBase"]
[SourceQuality "1"]
[TimeControl "5400+30"]

1. e4 c5 2. Nc3 Nc6 3. f4 g6 4. Nf3 Bg7 5. g3 d6 6. Bg2 e6 7. d3 Nge7 8. O-O O-O 9. Rb1 b6 10. Bd2 Bb7 11. g4 f5 12. exf5 exf5 13. gxf5 Nxf5 14. Ng5 Qd7 15. Bd5+ Kh8 16. Ne6 Bd4+ 17. Nxd4 Ncxd4 18. Be4 d5 19. Bh1 Rae8 20. Rf2 Ne3 21. Bxe3 Rxe3 22. Bg2 Nf5 23. Qg4 Qf7 24. a3 Ree8 25. Qf3 Ba8 26. Bh1 Re3 27. Qg4 Rfe8 28. Rbf1 Re1 29. Nd1 R1e7 30. Bf3 Bb7 31. Kh1 Bc8 32. Qg2 d4 33. Be4 Nd6 34. Bd5 Be6 35. Bxe6 Rxe6 36. Qd5 Nf5 37. Re2 Kg7 38. Rxe6 Qxe6 39. Qg2 Qe2 40. b4 Qxg2+ 41. Kxg2 Re2+ 42. Rf2 Re1 43. Nb2 cxb4 44. axb4 b5 0-1

[Event "V. Korchnoy Memorial 2018"]
[Site "St. Petersburg"]
[Date "2018.08.17"]
[Round "3"]
[White "Bykov, Oleg"]
[Black "Levin, Evgeny A"]
[Result "1/2-1/2"]
[ECO "E17"]
[WhiteElo "2383"]
[BlackElo "2523"]
[Annotator "ChessBase"]
[PlyCount "61"]
[EventDate "2018.08.15"]
[EventType "swiss"]
[EventCountry "RUS"]
[SourceTitle "playchess.com"]
[Source "ChessBase"]
[SourceQuality "1"]
[TimeControl "5400+30"]

1. d4 {[%emt 0:02:56]} Nf6 {[%emt 0:00:00]} 2. c4 {[%emt 0:00:05]} e6 {[%emt 0:00:00]} 3. Nf3 {[%emt 0:00:04]} b6 {[%emt 0:00:00]} 4. g3 {[%emt 0:00:08]} Bb7 {[%emt 0:00:00]} 5. Bg2 {[%emt 0:00:08]} Be7 {[%emt 0:00:00]} 6. O-O {[%emt 0:00:06]} O-O {[%emt 0:00:01]} 7. d5 {[%emt 0:02:58]} exd5 {[%emt 0:00:20]} 8. Nh4 {[%emt 0:00:13]} c6 {[%emt 0:00:26]} 9. cxd5 {[%emt 0:00:38]} Nxd5 {[%emt 0:00:04]} 10. Nf5 {[%emt 0:00:13]} Nc7 {[%emt 0:02:13]} 11. e4 {[%emt 0:03:27]} d5 {[%emt 0:01:27]} 12. Nc3 {[%emt 0:03:58]} Bf6 {[%emt 0:03:15]} 13. exd5 {[%emt 0:01:11]} cxd5 {[%emt 0:00:54]} 14. Bf4 {[%emt 0:00:29]} Nba6 {[%emt 0:00:42]} 15. Re1 {[%emt 0:00:13]} Bc8 {[%emt 0:01:02]} 16. Nd6 {[%emt 0:09:49]} Bxc3 {[%emt 0:08:56]} 17. bxc3 {[%emt 0:01:28]} Be6 {[%emt 0:00:08]} 18. c4 {[%emt 0:08:42]} dxc4 {[%emt 0:03:10]} 19. Bxa8 {[%emt 0:01:14]} Qxa8 {[%emt 0:00:17]} 20. Rc1 {[%emt 0:07:11]} Nc5 {[%emt 0:35:11]} 21. Nxc4 {[%emt 0:10:18]} Nb5 {[%emt 0:10:37]} 22. Be5 {[%emt 0:11:48]} Rd8 {[%emt 0:00:09]} 23. Qh5 {[%emt 0:00:37]} Nd3 {[%emt 0:09:58]} 24. Bxg7 {[%emt 0:15:34]} Nxe1 {[%emt 0:02:38]} 25. Rxe1 {[%emt 0:00:07]} Kxg7 {[%emt 0:02:44]} 26. Qg5+ {[%emt 0:04:46]} Kf8 {[%emt 0:00:17]} 27. Qh6+ {[%emt 0:01:17]} Kg8 {[%emt 0:00:22]} 28. Qg5+ {[%emt 0:00:05]} Kf8 {[%emt 0:00:04]} 29. Qh6+ {[%emt 0:00:10]} Kg8 {[%emt 0:00:19]} 30. Qg5+ {[%emt 0:00:07]} Kf8 {[%emt 0:00:07]} 31. Qh6+ {[%emt 0:00:07]} 1/2-1/2

[Event "V. Korchnoy Memorial 2018"]
[Site "St. Petersburg"]
[Date "2018.08.17"]
[Round "3"]
[White "Apryshko, Gleb"]
[Black "Tran, Tuan Minh"]
[Result "1-0"]
[ECO "B53"]
[WhiteElo "2377"]
[BlackElo "2520"]
[Annotator "ChessBase"]
[PlyCount "151"]
[EventDate "2018.08.15"]
[EventType "swiss"]
[EventCountry "RUS"]
[SourceTitle "playchess.com"]
[Source "ChessBase"]
[SourceQuality "1"]
[TimeControl "5400+30"]

1. e4 {[%emt 0:00:22]} c5 {[%emt 0:00:00]} 2. Nf3 {[%emt 0:00:20]} d6 {[%emt 0:00:00]} 3. d4 {[%emt 0:00:09]} cxd4 {[%emt 0:00:03]} 4. Qxd4 {[%emt 0:00:06]} Nc6 {[%emt 0:00:05]} 5. Bb5 {[%emt 0:00:09]} a6 {[%emt 0:00:06]} 6. Bxc6+ {[%emt 0:00:14]} bxc6 {[%emt 0:00:04]} 7. c4 {[%emt 0:09:20]} e5 {[%emt 0:01:08]} 8. Qd3 {[%emt 0:00:46]} Ne7 {[%emt 0:02:01]} 9. c5 {[%emt 0:03:52]} Ng6 {[%emt 0:01:35]} 10. cxd6 {[%emt 0:07:22]} Qxd6 {[%emt 0:01:00]} 11. Qxd6 {[%emt 0:02:21]} Bxd6 {[%emt 0:00:03]} 12. Nbd2 {[%emt 0:04:34]} a5 {[%emt 0:00:14]} 13. Nc4 {[%emt 0:04:03]} Bc7 {[%emt 0:02:09]} 14. b3 {[%emt 0:17:48]} a4 {[%emt 0:02:09]} 15. Ba3 {[%emt 0:00:31]} Be6 {[%emt 0:02:34]} 16. O-O {[%emt 0:05:25]} f6 {[%emt 0:03:51]} 17. g3 {[%emt 0:02:54]} Kf7 {[%emt 0:01:27]} 18. Rfc1 {[%emt 0:03:42]} Rhd8 {[%emt 0:08:29]} 19. Kg2 {[%emt 0:01:48]} Rd3 {[%emt 0:28:28]} 20. Nb2 {[%emt 0:02:27]} Rxf3 {[%emt 0:08:54]} 21. Kxf3 {[%emt 0:00:06]} axb3 {[%emt 0:00:06]} 22. axb3 {[%emt 0:00:28]} Bb6 {[%emt 0:00:15]} 23. Na4 {[%emt 0:17:47]} Bd4 {[%emt 0:00:28]} 24. Bb2 {[%emt 0:00:02]} Rxa4 {[%emt 0:01:40]} 25. bxa4 {[%emt 0:00:02]} Bxb2 {[%emt 0:00:05]} 26. a5 {[%emt 0:00:20]} Bc8 {[%emt 0:15:22]} 27. Rcb1 {[%emt 0:01:21]} Bxa1 {[%emt 0:12:29]} 28. Rxa1 {[%emt 0:00:02]} Nf8 {[%emt 0:02:48]} 29. a6 {[%emt 0:00:10]} Ne6 {[%emt 0:00:04]} 30. a7 {[%emt 0:00:24]} Bb7 {[%emt 0:00:20]} 31. a8=Q {[%emt 0:03:27]} Bxa8 {[%emt 0:01:18]} 32. Rxa8 {[%emt 0:00:04]} Nd4+ {[%emt 0:02:56]} 33. Ke3 {[%emt 0:00:27]} g5 {[%emt 0:03:02]} 34. Ra7+ {[%emt 0:01:40]} Kg6 {[%emt 0:00:04]} 35. h3 {[%emt 0:05:49]} h5 {[%emt 0:01:41]} 36. Rc7 {[%emt 0:00:02]} g4 {[%emt 0:00:30]} 37. h4 {[%emt 0:00:19]} Kh6 {[%emt 0:00:24]} 38. Kd3 {[%emt 0:01:03]} Kg6 {[%emt 0:00:19]} 39. Rd7 {[%emt 0:01:19]} Nf3 {[%emt 0:00:44]} 40. Kc4 {[%emt 0:02:36]} Nd4 {[%emt 0:00:19]} 41. Re7 {[%emt 0:01:51]} Nf3 {[%emt 0:00:36]} 42. Rd7 {[%emt 0:00:10]} Nd4 {[%emt 0:00:01]} 43. Kc5 {[%emt 0:00:33]} Ne2 {[%emt 0:00:03]} 44. Rd3 {[%emt 0:01:23]} Nd4 {[%emt 0:00:01]} 45. Kd6 {[%emt 0:00:00]} Kf7 {[%emt 0:00:14]} 46. Re3 {[%emt 0:01:46]} Kg6 {[%emt 0:00:43]} 47. Re1 {[%emt 0:00:22]} Kf7 {[%emt 0:01:33]} 48. Rb1 {[%emt 0:00:56]} Kg6 {[%emt 0:00:09]} 49. Rb7 {[%emt 0:00:32]} Ne2 {[%emt 0:00:46]} 50. Rb3 {[%emt 0:01:12]} Nd4 {[%emt 0:00:05]} 51. Rb8 {[%emt 0:00:26]} Ne2 {[%emt 0:00:48]} 52. Ke7 {[%emt 0:00:11]} Nc3 {[%emt 0:00:17]} 53. Rg8+ {[%emt 0:00:11]} Kh7 {[%emt 0:00:05]} 54. Kf7 {[%emt 0:00:43]} Nxe4 {[%emt 0:00:00]} 55. Rg7+ {[%emt 0:00:41]} Kh6 {[%emt 0:00:01]} 56. Rg6+ {[%emt 0:00:15]} Kh7 {[%emt 0:00:00]} 57. Rg7+ {[%emt 0:00:06]} Kh6 {[%emt 0:00:01]} 58. Rg8 {[%emt 0:00:06]} Kh7 {[%emt 0:00:08]} 59. Ra8 {[%emt 0:01:17]} c5 {[%emt 0:00:36]} 60. Ke6 {[%emt 0:00:51]} Kg7 {[%emt 0:02:35]} 61. Kf5 {[%emt 0:00:28]} Nd6+ {[%emt 0:00:13]} 62. Ke6 {[%emt 0:00:01]} Ne4 {[%emt 0:02:06]} 63. Ra4 {[%emt 0:01:16]} Nxf2 {[%emt 0:00:42]} 64. Kf5 {[%emt 0:00:01]} e4 {[%emt 0:00:17]} 65. Ra7+ {[%emt 0:00:15]} Kh6 {[%emt 0:00:01]} 66. Ra2 {[%emt 0:00:41]} e3 {[%emt 0:01:11]} 67. Re2 {[%emt 0:00:27]} Nd1 {[%emt 0:00:31]} 68. Re1 {[%emt 0:00:22]} Nb2 {[%emt 0:00:31]} 69. Rxe3 {[%emt 0:00:12]} c4 {[%emt 0:00:05]} 70. Re6 {[%emt 0:00:44]} Nd1 {[%emt 0:00:54]} 71. Rxf6+ {[%emt 0:00:05]} Kg7 {[%emt 0:00:01]} 72. Rc6 {[%emt 0:00:16]} Ne3+ {[%emt 0:00:43]} 73. Kf4 {[%emt 0:01:11]} Nd5+ {[%emt 0:00:46]} 74. Kg5 {[%emt 0:00:18]} c3 {[%emt 0:00:25]} 75. Rc5 {[%emt 0:00:33]} Nf6 {[%emt 0:00:36]} 76. Rc7+ {[%emt 0:00:03]} 1-0

[Event "V. Korchnoy Memorial 2018"]
[Site "St. Petersburg"]
[Date "2018.08.17"]
[Round "3"]
[White "Yatzenko, Anton"]
[Black "Kobo, Ori"]
[Result "1/2-1/2"]
[ECO "B06"]
[WhiteElo "2356"]
[BlackElo "2510"]
[Annotator "ChessBase"]
[PlyCount "81"]
[EventDate "2018.08.15"]
[EventType "swiss"]
[EventCountry "RUS"]
[SourceTitle "playchess.com"]
[Source "ChessBase"]
[SourceQuality "1"]
[TimeControl "5400+30"]

1. e4 {[%emt 0:00:00]} g6 {[%emt 0:00:17]} 2. d4 {[%emt 0:00:00]} Bg7 {[%emt 0:00:14]} 3. Nf3 {[%emt 0:00:00]} d6 {[%emt 0:00:21]} 4. Bc4 {[%emt 0:00:00]} Nf6 {[%emt 0:00:31]} 5. Qe2 {[%emt 0:00:00]} Nc6 {[%emt 0:00:25]} 6. h3 {[%emt 0:01:05]} e5 {[%emt 0:00:53]} 7. dxe5 {[%emt 0:00:06]} Nxe5 {[%emt 0:00:21]} 8. Nxe5 {[%emt 0:00:13]} dxe5 {[%emt 0:00:03]} 9. O-O {[%emt 0:00:13]} Nh5 {[%emt 0:02:49]} 10. Nc3 {[%emt 0:09:42]} c6 {[%emt 0:04:59]} 11. Be3 {[%emt 0:03:27]} O-O {[%emt 0:05:31]} 12. Rfd1 {[%emt 0:06:35]} Qh4 {[%emt 0:07:12]} 13. Qf3 {[%emt 0:22:02]} Nf4 {[%emt 0:12:38]} 14. Rd2 {[%emt 0:00:42]} Be6 {[%emt 0:06:46]} 15. Bf1 {[%emt 0:06:58]} Qe7 {[%emt 0:13:13]} 16. a3 {[%emt 0:02:02]} b5 {[%emt 0:02:29]} 17. Rad1 {[%emt 0:01:57]} a5 {[%emt 0:03:47]} 18. Rd6 {[%emt 0:02:40]} Rfc8 {[%emt 0:00:29]} 19. Kh2 {[%emt 0:04:20]} Bf8 {[%emt 0:02:48]} 20. g3 {[%emt 0:11:30]} Nh5 {[%emt 0:00:08]} 21. R6d2 {[%emt 0:02:35]} a4 {[%emt 0:00:48]} 22. Ne2 {[%emt 0:02:29]} Nf6 {[%emt 0:09:46]} 23. Bg5 {[%emt 0:02:28]} Kg7 {[%emt 0:02:04]} 24. Qe3 {[%emt 0:04:02]} Qa7 {[%emt 0:03:43]} 25. Qf3 {[%emt 0:06:13]} Be7 {[%emt 0:00:47]} 26. Kg1 {[%emt 0:00:20]} h6 {[%emt 0:01:11]} 27. Be3 {[%emt 0:00:38]} Qb7 {[%emt 0:01:59]} 28. Nc1 {[%emt 0:00:20]} b4 {[%emt 0:04:09]} 29. Nd3 {[%emt 0:05:08]} bxa3 {[%emt 0:00:11]} 30. bxa3 {[%emt 0:00:04]} Ra5 {[%emt 0:00:42]} 31. Ra1 {[%emt 0:02:54]} c5 {[%emt 0:00:22]} 32. Bg2 {[%emt 0:01:39]} c4 {[%emt 0:02:55]} 33. Nb4 {[%emt 0:00:01]} Bxb4 {[%emt 0:01:09]} 34. axb4 {[%emt 0:00:02]} Qxb4 {[%emt 0:00:12]} 35. c3 {[%emt 0:00:20]} Qe7 {[%emt 0:01:24]} 36. Rda2 {[%emt 0:00:09]} Rca8 {[%emt 0:00:47]} 37. Bc1 {[%emt 0:00:14]} a3 {[%emt 0:03:25]} 38. Qe3 {[%emt 0:00:03]} g5 {[%emt 0:00:34]} 39. Qb6 {[%emt 0:01:08]} Ra4 {[%emt 0:00:55]} 40. Be3 {[%emt 0:01:18]} Nd7 {[%emt 0:02:40]} 41. Qc7 {[%emt 0:00:01]} 1/2-1/2

[Event "V. Korchnoy Memorial 2018"]
[Site "St. Petersburg"]
[Date "2018.08.18"]
[Round "4"]
[White "Kokarev, Dmitry"]
[Black "Savitskiy, Sergey"]
[Result "0-1"]
[ECO "B69"]
[WhiteElo "2608"]
[BlackElo "2418"]
[Annotator "RC"]
[PlyCount "90"]
[EventDate "2018.08.15"]
[EventType "swiss"]
[EventCountry "RUS"]
[SourceTitle "playchess.com"]
[Source "ChessBase"]
[SourceQuality "1"]
[TimeControl "5400+30"]

1. e4 {[%emt 0:00:00]} c5 {[%emt 0:00:00]} 2. Nf3 {[%emt 0:00:00]} d6 {[%emt 0:00:00]} 3. d4 {[%emt 0:00:00]} cxd4 {[%emt 0:00:00]} 4. Nxd4 {[%emt 0:00:00]} Nf6 {[%emt 0:00:00]} 5. Nc3 {[%emt 0:00:00]} Nc6 {[%emt 0:00:06]} 6. Bg5 {[%emt 0:00:06]} e6 {[%emt 0:00:21]} 7. Qd2 {[%emt 0:00:07]} a6 {[%emt 0:00:06]} 8. O-O-O {[%emt 0:00:15]} Bd7 {[%emt 0:00:37]} 9. f4 {[%emt 0:00:20]} Be7 {[%emt 0:00:28]} 10. Nf3 {[%emt 0:00:15]} b5 {[%emt 0:00:12]} 11. Bxf6 {[%emt 0:00:11]} gxf6 {[%emt 0:00:09]} 12. Kb1 {[%emt 0:00:28]} Qb6 {[%emt 0:00:41]} 13. f5 {[%emt 0:00:13]} Ne5 {[%emt 0:00:50]} 14. Nd4 {[%emt 0:00:56]} h5 {[%emt 0:00:59]} 15. Qe1 {[%emt 0:02:26]} Qb7 {[%emt 0:01:39]} 16. Qh4 {[%emt 0:09:29]} O-O-O {[%emt 0:10:56]} 17. a3 {[%emt 0:07:15]} Kb8 {[%emt 0:03:22]} 18. Be2 {[%emt 0:03:14]} Rc8 {[%emt 0:03:59]} 19. Qh3 {[%emt 0:00:33]} Rc7 {[%emt 0:03:39]} 20. Rhe1 {[%emt 0:02:54]} Ka8 {[%emt 0:19:51]} 21. Bf1 {[%emt 0:03:59]} Rhc8 {[%emt 0:39:17]} 22. Na2 {[%emt 0:04:21]} Nc4 {[%emt 0:05:07]} 23. Qxh5 {[%emt 0:05:16]} e5 {[%emt 0:01:47]} 24. Nb3 {[%emt 0:00:25]} d5 {[%emt 0:02:02]} 25. exd5 {[%emt 0:15:31]} Bxa3 {[%emt 0:01:43]} 26. bxa3 {[%emt 0:02:12]} Nxa3+ {[%emt 0:00:04]} 27. Kb2 {[%emt 0:00:04]} Rxc2+ {[%emt 0:00:18]} 28. Ka1 {[%emt 0:00:05]} Qb6 {[%emt 0:05:09]} 29. Bd3 {[%emt 0:02:51]} a5 {[%emt 0:00:33]} 30. Qg4 {[%emt 0:11:50]} b4 {[%emt 0:00:13]} 31. Rc1 {[%emt 0:02:04]} a4 {[%emt 0:00:45]} 32. Bxc2 {[%emt 0:06:49]} Nxc2+ {[%emt 0:00:10]} 33. Rxc2 {[%emt 0:01:52]} Rxc2 {[%emt 0:00:05]} 34. Nxb4 {[%emt 0:04:35]} axb3 {[%emt 0:00:14]} 35. d6 {[%emt 0:00:01]} Bxf5 {[%emt 0:01:25]} 36. Qf3+ {[%emt 0:00:01]} Kb8 {[%emt 0:00:27]} 37. Nxc2 {[%emt 0:00:28]} Qa5+ {[%emt 0:00:42]} 38. Kb2 {[%emt 0:00:07]} Qa2+ {[%emt 0:00:16]} 39. Kc3 {[%emt 0:00:06]} Qxc2+ {[%emt 0:00:08]} 40. Kb4 {[%emt 0:00:05]} b2 {[%emt 0:00:18]} 41. d7 {[%emt 0:00:57]} b1=Q+ {[%emt 0:00:29]} 42. Rxb1 {[%emt 0:00:06]} Qxb1+ {[%emt 0:00:02]} 43. Kc5 {[%emt 0:00:05]} Bxd7 {[%emt 0:00:19]} 44. Qxf6 {[%emt 0:00:00]} Qb5+ {[%emt 0:00:00]} 45. Kd6 {[%emt 0:00:00]} Qc6+ {[%emt 0:00:02]} 0-1